[Event "Titled Tuesday Blitz February 22 Early 2022"]
[White "Gaehwiler, Gabriel"]
[Black "Jumabayev, Rinat"]
[WhiteFideId "1314530"]
[BlackFideId "13702661"]
[WhiteElo "2383"]
[BlackElo "2561"]
[Result "1/2-1/2"]
[Round "03"]
[TimeControl "180+1"]
[Date "2022.02.22"]
[WhiteClock "0:00:12"]
[BlackClock "0:00:06"]

1. Nf3 {[%clk 0:02:46]}  e6 {[%clk 0:02:59]} 2. d4 {[%clk 0:02:45]}  d5 {[%clk 0:03:00]} 3. c4 {[%clk 0:02:43]}  Nf6 {[%clk 0:03:00]} 4. g3 {[%clk 0:02:43]}  Be7 {[%clk 0:02:57]} 5. Bg2 {[%clk 0:02:43]}  O-O {[%clk 0:02:58]} 6. O-O {[%clk 0:02:43]}  c6 {[%clk 0:02:58]} 7. Nbd2 {[%clk 0:02:42]}  b6 {[%clk 0:02:56]} 8. Qc2 {[%clk 0:02:40]}  Bb7 {[%clk 0:02:57]} 9. e4 {[%clk 0:02:40]}  Na6 {[%clk 0:02:57]} 10. a3 {[%clk 0:02:38]}  c5 {[%clk 0:02:55]} 11. exd5 {[%clk 0:02:35]}  exd5 {[%clk 0:02:55]} 12. dxc5 {[%clk 0:02:29]}  Nxc5 {[%clk 0:02:55]} 13. b4 {[%clk 0:02:28]}  Ne6 {[%clk 0:02:50]} 14. cxd5 {[%clk 0:02:15]}  Qxd5 {[%clk 0:02:44]} 15. Bb2 {[%clk 0:02:12]}  Rac8 {[%clk 0:02:42]} 16. Qb3 {[%clk 0:02:12]}  Rfd8 {[%clk 0:02:33]} 17. Qxd5 {[%clk 0:02:08]}  Bxd5 {[%clk 0:02:24]} 18. Rfc1 {[%clk 0:02:08]}  a5 {[%clk 0:02:04]} 19. bxa5 {[%clk 0:02:04]}  bxa5 {[%clk 0:02:05]} 20. Nf1 {[%clk 0:02:00]}  Nd7 {[%clk 0:01:45]} 21. Ne3 {[%clk 0:01:58]}  Ba8 {[%clk 0:01:43]} 22. Bc3 {[%clk 0:01:25]}  a4 {[%clk 0:01:32]} 23. Nf5 {[%clk 0:01:17]}  Bf8 {[%clk 0:01:28]} 24. Ba5 {[%clk 0:01:07]}  Rxc1+ {[%clk 0:01:22]} 25. Rxc1 {[%clk 0:01:07]}  Rb8 {[%clk 0:01:22]} 26. N3d4 {[%clk 0:01:02]}  Bxg2 {[%clk 0:00:54]} 27. Kxg2 {[%clk 0:01:01]}  Ra8 {[%clk 0:00:38]} 28. Nc6 {[%clk 0:00:57]}  Bxa3 {[%clk 0:00:35]} 29. Ra1 {[%clk 0:00:55]}  Bf8 {[%clk 0:00:12]} 30. Rxa4 {[%clk 0:00:54]}  Ndc5 {[%clk 0:00:12]} 31. Rc4 {[%clk 0:00:35]}  f6 {[%clk 0:00:05]} 32. Bb4 {[%clk 0:00:30]}  Kf7 {[%clk 0:00:05]} 33. Ne3 {[%clk 0:00:26]}  Ra6 {[%clk 0:00:03]} 34. Nd4 {[%clk 0:00:22]}  Nxd4 {[%clk 0:00:03]} 35. Rxd4 {[%clk 0:00:23]}  Ra7 {[%clk 0:00:01]} 36. Rc4 {[%clk 0:00:22]}  Ne6 {[%clk 0:00:01]} 37. Bxf8 {[%clk 0:00:19]}  Nxf8 {[%clk 0:00:02]} 38. Rb4 {[%clk 0:00:18]}  Rd7 {[%clk 0:00:03]} 39. Rb1 {[%clk 0:00:16]}  g6 {[%clk 0:00:03]} 40. Rd1 {[%clk 0:00:16]}  h5 {[%clk 0:00:03]} 41. Rxd7+ {[%clk 0:00:16]}  Nxd7 {[%clk 0:00:04]} 42. f4 {[%clk 0:00:17]}  Ke6 {[%clk 0:00:04]} 43. Kf3 {[%clk 0:00:17]}  f5 {[%clk 0:00:05]} 44. Ke2 {[%clk 0:00:12]}  Nc5 {[%clk 0:00:05]} 45. Kf3 {[%clk 0:00:11]}  Ne4 {[%clk 0:00:04]} 46. Ng2 {[%clk 0:00:11]}  Nf6 {[%clk 0:00:04]} 47. Nh4 {[%clk 0:00:11]}  Kf7 {[%clk 0:00:05]} 48. h3 {[%clk 0:00:12]}  Nd5 {[%clk 0:00:04]} 49. g4 {[%clk 0:00:10]}  hxg4+ {[%clk 0:00:05]} 50. hxg4 {[%clk 0:00:11]}  Kf6 {[%clk 0:00:05]} 51. gxf5 {[%clk 0:00:11]}  gxf5 {[%clk 0:00:06]} 52. Nxf5 {[%clk 0:00:12]}  Kxf5 {[%clk 0:00:06]} 53. Kg3 {[%clk 0:00:12]}  Nxf4 {[%clk 0:00:06]} 1/2-1/2


[Site "https://www.chess.com"]

[Event "Titled Tuesday Blitz February 22 Early 2022"]
[White "Gelman, Alexander"]
[Black "Medeiros Jr, Francisco De Assis"]
[WhiteFideId "4118316"]
[BlackFideId "2114267"]
[WhiteElo "2375"]
[BlackElo "1998"]
[Result "1-0"]
[Round "03"]
[TimeControl "180+1"]
[Date "2022.02.22"]
[WhiteClock "0:00:05"]
[BlackClock "0:00:07"]

1. d4 {[%clk 0:03:00]}  d5 {[%clk 0:02:54]} 2. Nc3 {[%clk 0:03:00]}  c6 {[%clk 0:02:54]} 3. Bf4 {[%clk 0:03:00]}  Bf5 {[%clk 0:02:35]} 4. f3 {[%clk 0:03:00]}  Nf6 {[%clk 0:02:32]} 5. g4 {[%clk 0:02:59]}  Bg6 {[%clk 0:02:30]} 6. h4 {[%clk 0:03:00]}  h6 {[%clk 0:02:28]} 7. e3 {[%clk 0:03:00]}  b5 {[%clk 0:02:25]} 8. Nh3 {[%clk 0:02:54]}  e6 {[%clk 0:02:23]} 9. Qd2 {[%clk 0:02:43]}  Nbd7 {[%clk 0:02:21]} 10. Bg3 {[%clk 0:02:41]}  Nb6 {[%clk 0:02:16]} 11. Nf4 {[%clk 0:02:40]}  Bh7 {[%clk 0:02:14]} 12. a3 {[%clk 0:01:53]}  a5 {[%clk 0:02:07]} 13. Bd3 {[%clk 0:01:52]}  Bxd3 {[%clk 0:02:04]} 14. cxd3 {[%clk 0:01:53]}  Nfd7 {[%clk 0:01:58]} 15. Kf2 {[%clk 0:01:48]}  Bd6 {[%clk 0:01:50]} 16. Nce2 {[%clk 0:01:45]}  Qe7 {[%clk 0:01:46]} 17. Rac1 {[%clk 0:01:43]}  c5 {[%clk 0:01:35]} 18. dxc5 {[%clk 0:01:33]}  Nxc5 {[%clk 0:01:33]} 19. Nd4 {[%clk 0:01:34]}  b4 {[%clk 0:01:17]} 20. axb4 {[%clk 0:01:11]}  axb4 {[%clk 0:01:17]} 21. Kg2 {[%clk 0:00:57]}  O-O {[%clk 0:01:10]} 22. g5 {[%clk 0:00:47]}  Rfc8 {[%clk 0:00:56]} 23. gxh6 {[%clk 0:00:44]}  Bxf4 {[%clk 0:00:48]} 24. Bxf4 {[%clk 0:00:29]}  e5 {[%clk 0:00:48]} 25. Bg5 {[%clk 0:00:18]}  f6 {[%clk 0:00:44]} 26. Qxb4 {[%clk 0:00:18]}  exd4 {[%clk 0:00:29]} 27. Qxb6 {[%clk 0:00:17]}  Rab8 {[%clk 0:00:26]} 28. Qa5 {[%clk 0:00:08]}  Rxb2+ {[%clk 0:00:25]} 29. Kg3 {[%clk 0:00:07]}  fxg5 {[%clk 0:00:18]} 30. exd4 {[%clk 0:00:07]}  Qd6+ {[%clk 0:00:18]} 31. Kg4 {[%clk 0:00:05]}  Qf4+ {[%clk 0:00:17]} 32. Kh5 {[%clk 0:00:06]}  g6+ {[%clk 0:00:16]} 33. Kxg6 {[%clk 0:00:04]}  Rc6+ {[%clk 0:00:16]} 34. Kh5 {[%clk 0:00:03]}  Rxh6+ {[%clk 0:00:12]} 35. Kxh6 {[%clk 0:00:03]}  g4+ {[%clk 0:00:11]} 36. Kh5 {[%clk 0:00:03]}  Qf5+ {[%clk 0:00:11]} 37. Kh6 {[%clk 0:00:03]}  Qf6+ {[%clk 0:00:08]} 38. Kh5 {[%clk 0:00:03]}  Qf5+ {[%clk 0:00:08]} 39. Kh6 {[%clk 0:00:04]}  Rb7 {[%clk 0:00:08]} 40. Qd8+ {[%clk 0:00:02]}  Kf7 {[%clk 0:00:06]} 41. Rxc5 {[%clk 0:00:02]}  Ke6 {[%clk 0:00:05]} 42. Rc6+ {[%clk 0:00:02]}  Kf7 {[%clk 0:00:05]} 43. Rc7+ {[%clk 0:00:02]}  Rxc7 {[%clk 0:00:05]} 44. Qxc7+ {[%clk 0:00:03]}  Ke6 {[%clk 0:00:06]} 45. Qc8+ {[%clk 0:00:03]}  Kf6 {[%clk 0:00:06]} 46. Qxf5+ {[%clk 0:00:04]}  Kxf5 {[%clk 0:00:06]} 47. fxg4+ {[%clk 0:00:05]}  Kxg4 {[%clk 0:00:07]} 48. h5 {[%clk 0:00:05]} 1-0


[Site "https://www.chess.com"]

[Event "Titled Tuesday Blitz February 22 Early 2022"]
[White "Goldin, Roman"]
[Black "Chincholimath, Halsagar"]
[WhiteFideId "2803860"]
[BlackFideId "5022487"]
[WhiteElo "2312"]
[BlackElo "1737"]
[Result "1-0"]
[Round "03"]
[TimeControl "180+1"]
[Date "2022.02.22"]
[WhiteClock "0:00:29"]
[BlackClock "0:00:27"]

1. e4 {[%clk 0:03:00]}  c6 {[%clk 0:02:59]} 2. d4 {[%clk 0:02:57]}  d5 {[%clk 0:03:00]} 3. f3 {[%clk 0:02:57]}  dxe4 {[%clk 0:02:58]} 4. fxe4 {[%clk 0:02:57]}  e5 {[%clk 0:02:58]} 5. Nf3 {[%clk 0:02:58]}  Bg4 {[%clk 0:02:57]} 6. Bc4 {[%clk 0:02:52]}  Nd7 {[%clk 0:02:55]} 7. O-O {[%clk 0:02:46]}  Ngf6 {[%clk 0:02:55]} 8. c3 {[%clk 0:02:42]}  Bd6 {[%clk 0:02:55]} 9. Nbd2 {[%clk 0:02:22]}  O-O {[%clk 0:02:49]} 10. Qe1 {[%clk 0:02:21]}  Re8 {[%clk 0:02:32]} 11. Qh4 {[%clk 0:02:14]}  Bxf3 {[%clk 0:02:15]} 12. Nxf3 {[%clk 0:01:49]}  exd4 {[%clk 0:02:15]} 13. Ng5 {[%clk 0:01:47]}  Ne5 {[%clk 0:02:02]} 14. Bb3 {[%clk 0:01:29]}  h6 {[%clk 0:01:57]} 15. Rxf6 {[%clk 0:01:09]}  Qxf6 {[%clk 0:01:53]} 16. cxd4 {[%clk 0:01:06]}  Ng6 {[%clk 0:01:44]} 17. Qh5 {[%clk 0:00:56]}  Qxd4+ {[%clk 0:01:31]} 18. Kh1 {[%clk 0:00:56]}  hxg5 {[%clk 0:01:15]} 19. Qxg6 {[%clk 0:00:55]}  Qf2 {[%clk 0:01:00]} 20. Be3 {[%clk 0:00:50]}  Qf6 {[%clk 0:00:56]} 21. Qh5 {[%clk 0:00:46]}  Bf4 {[%clk 0:00:44]} 22. Bd4 {[%clk 0:00:43]}  Qe7 {[%clk 0:00:34]} 23. Rf1 {[%clk 0:00:37]}  b5 {[%clk 0:00:29]} 24. e5 {[%clk 0:00:32]}  c5 {[%clk 0:00:27]} 25. Bxc5 {[%clk 0:00:30]}  Qxc5 {[%clk 0:00:27]} 26. Qxf7+ {[%clk 0:00:28]}  Kh8 {[%clk 0:00:27]} 27. Qh5# {[%clk 0:00:29]} 1-0


[Site "https://www.chess.com"]

[Event "Titled Tuesday Blitz February 22 Early 2022"]
[White "Golubka, Petro"]
[Black "Kravtsiv, Martyn"]
[WhiteFideId "14114224"]
[BlackFideId "14113147"]
[WhiteElo "2392"]
[BlackElo "2694"]
[Result "1-0"]
[Round "03"]
[TimeControl "180+1"]
[Date "2022.02.22"]
[WhiteClock "0:00:21"]
[BlackClock "0:00:02"]

1. e4 {[%clk 0:02:42]}  e5 {[%clk 0:02:59]} 2. Bb5 {[%clk 0:02:35]}  a6 {[%clk 0:02:56]} 3. Ba4 {[%clk 0:02:35]}  Nf6 {[%clk 0:02:55]} 4. d3 {[%clk 0:02:35]}  Be7 {[%clk 0:02:48]} 5. f4 {[%clk 0:02:33]}  exf4 {[%clk 0:02:43]} 6. Bxf4 {[%clk 0:02:29]}  O-O {[%clk 0:02:43]} 7. Nd2 {[%clk 0:02:25]}  d5 {[%clk 0:02:33]} 8. e5 {[%clk 0:02:22]}  Nfd7 {[%clk 0:02:33]} 9. d4 {[%clk 0:02:19]}  Nb6 {[%clk 0:02:18]} 10. Bb3 {[%clk 0:02:17]}  Bg5 {[%clk 0:02:19]} 11. Bxg5 {[%clk 0:02:06]}  Qxg5 {[%clk 0:02:18]} 12. Qe2 {[%clk 0:02:06]}  Qh4+ {[%clk 0:02:03]} 13. Qf2 {[%clk 0:02:03]}  Qxf2+ {[%clk 0:02:03]} 14. Kxf2 {[%clk 0:02:04]}  f6 {[%clk 0:02:03]} 15. exf6 {[%clk 0:02:04]}  N8d7 {[%clk 0:02:02]} 16. Ngf3 {[%clk 0:02:04]}  Nxf6 {[%clk 0:02:02]} 17. Rhe1 {[%clk 0:02:02]}  Bf5 {[%clk 0:01:59]} 18. Kg1 {[%clk 0:01:54]}  Rae8 {[%clk 0:01:58]} 19. a4 {[%clk 0:01:50]}  a5 {[%clk 0:01:52]} 20. Ne5 {[%clk 0:01:44]}  c6 {[%clk 0:01:51]} 21. c4 {[%clk 0:01:38]}  Be6 {[%clk 0:01:48]} 22. c5 {[%clk 0:01:36]}  Nbd7 {[%clk 0:01:48]} 23. Ndf3 {[%clk 0:01:36]}  Ng4 {[%clk 0:01:30]} 24. Nxd7 {[%clk 0:01:34]}  Bxd7 {[%clk 0:01:30]} 25. Rxe8 {[%clk 0:01:34]}  Rxe8 {[%clk 0:01:25]} 26. Re1 {[%clk 0:01:35]}  Rxe1+ {[%clk 0:01:24]} 27. Nxe1 {[%clk 0:01:36]}  Nf6 {[%clk 0:01:14]} 28. Kf2 {[%clk 0:01:29]}  Kf7 {[%clk 0:01:11]} 29. Bd1 {[%clk 0:01:20]}  Ke7 {[%clk 0:01:01]} 30. b4 {[%clk 0:01:10]}  axb4 {[%clk 0:00:52]} 31. Nd3 {[%clk 0:01:10]}  Bf5 {[%clk 0:00:37]} 32. Nxb4 {[%clk 0:01:08]}  g5 {[%clk 0:00:38]} 33. a5 {[%clk 0:01:06]}  Kd7 {[%clk 0:00:32]} 34. Ba4 {[%clk 0:00:52]}  Kc7 {[%clk 0:00:29]} 35. a6 {[%clk 0:00:50]}  bxa6 {[%clk 0:00:28]} 36. Nxa6+ {[%clk 0:00:51]}  Kb7 {[%clk 0:00:28]} 37. Nb4 {[%clk 0:00:52]}  Bd7 {[%clk 0:00:28]} 38. Kf3 {[%clk 0:00:50]}  h5 {[%clk 0:00:27]} 39. g3 {[%clk 0:00:46]}  Kc7 {[%clk 0:00:27]} 40. h4 {[%clk 0:00:45]}  gxh4 {[%clk 0:00:12]} 41. gxh4 {[%clk 0:00:46]}  Ne4 {[%clk 0:00:11]} 42. Kf4 {[%clk 0:00:44]}  Nc3 {[%clk 0:00:10]} 43. Bc2 {[%clk 0:00:42]}  Be8 {[%clk 0:00:10]} 44. Bd3 {[%clk 0:00:39]}  Kd7 {[%clk 0:00:10]} 45. Kg5 {[%clk 0:00:36]}  Ke6 {[%clk 0:00:08]} 46. Bf5+ {[%clk 0:00:36]}  Ke7 {[%clk 0:00:08]} 47. Bg6 {[%clk 0:00:35]}  Bxg6 {[%clk 0:00:05]} 48. Kxg6 {[%clk 0:00:36]}  Ne2 {[%clk 0:00:05]} 49. Nxc6+ {[%clk 0:00:33]}  Kd7 {[%clk 0:00:04]} 50. Ne5+ {[%clk 0:00:33]}  Ke6 {[%clk 0:00:05]} 51. Nf3 {[%clk 0:00:34]}  Nf4+ {[%clk 0:00:04]} 52. Kg5 {[%clk 0:00:35]}  Ng2 {[%clk 0:00:03]} 53. Kxh5 {[%clk 0:00:34]}  Kf5 {[%clk 0:00:04]} 54. Kh6 {[%clk 0:00:32]}  Nf4 {[%clk 0:00:04]} 55. Kg7 {[%clk 0:00:30]}  Ke4 {[%clk 0:00:04]} 56. c6 {[%clk 0:00:21]}  Kxf3 {[%clk 0:00:02]} 57. Kf7 {[%clk 0:00:21]} 1-0


[Site "https://www.chess.com"]

[Event "Titled Tuesday Blitz February 22 Early 2022"]
[White "Goryachkina, Aleksandra"]
[Black "Piesik, Piotr"]
[WhiteFideId "4147103"]
[BlackFideId "1136194"]
[WhiteElo "2426"]
[BlackElo "2232"]
[Result "0-1"]
[Round "03"]
[TimeControl "180+1"]
[Date "2022.02.22"]
[WhiteClock "0:00:03"]
[BlackClock "0:00:54"]

1. e4 {[%clk 0:02:59]}  g6 {[%clk 0:03:00]} 2. d4 {[%clk 0:02:59]}  Bg7 {[%clk 0:03:00]} 3. c4 {[%clk 0:02:56]}  d6 {[%clk 0:03:00]} 4. Nc3 {[%clk 0:02:56]}  Nd7 {[%clk 0:03:00]} 5. Be3 {[%clk 0:02:50]}  e5 {[%clk 0:03:00]} 6. d5 {[%clk 0:02:47]}  Ngf6 {[%clk 0:02:59]} 7. Be2 {[%clk 0:02:44]}  a5 {[%clk 0:02:59]} 8. Nf3 {[%clk 0:02:39]}  O-O {[%clk 0:02:58]} 9. Nd2 {[%clk 0:02:38]}  Nc5 {[%clk 0:02:58]} 10. g4 {[%clk 0:02:34]}  Ne8 {[%clk 0:02:57]} 11. h4 {[%clk 0:02:29]}  f5 {[%clk 0:02:57]} 12. f3 {[%clk 0:02:13]}  c6 {[%clk 0:02:49]} 13. gxf5 {[%clk 0:02:05]}  gxf5 {[%clk 0:02:48]} 14. Qc2 {[%clk 0:02:02]}  Nf6 {[%clk 0:02:37]} 15. O-O-O {[%clk 0:01:49]}  cxd5 {[%clk 0:02:37]} 16. cxd5 {[%clk 0:01:42]}  Bd7 {[%clk 0:02:31]} 17. Bxc5 {[%clk 0:01:34]}  dxc5 {[%clk 0:02:31]} 18. Bb5 {[%clk 0:01:30]}  Bh6 {[%clk 0:02:28]} 19. Kb1 {[%clk 0:01:28]}  Bxd2 {[%clk 0:02:27]} 20. Rxd2 {[%clk 0:01:27]}  Nh5 {[%clk 0:02:20]} 21. Rg1+ {[%clk 0:01:04]}  Kh8 {[%clk 0:02:20]} 22. Rdg2 {[%clk 0:01:00]}  fxe4 {[%clk 0:02:05]} 23. fxe4 {[%clk 0:00:57]}  Bxb5 {[%clk 0:01:47]} 24. Nxb5 {[%clk 0:00:58]}  Qb6 {[%clk 0:01:47]} 25. Nc3 {[%clk 0:00:42]}  Nf4 {[%clk 0:01:47]} 26. Rg3 {[%clk 0:00:37]}  Rg8 {[%clk 0:01:46]} 27. Na4 {[%clk 0:00:27]}  Qb4 {[%clk 0:01:44]} 28. Nc3 {[%clk 0:00:24]}  Qd4 {[%clk 0:01:22]} 29. Rxg8+ {[%clk 0:00:18]}  Rxg8 {[%clk 0:01:22]} 30. Rxg8+ {[%clk 0:00:17]}  Kxg8 {[%clk 0:01:23]} 31. a3 {[%clk 0:00:18]}  c4 {[%clk 0:01:15]} 32. Qh2 {[%clk 0:00:12]}  Qe3 {[%clk 0:01:02]} 33. Qh1 {[%clk 0:00:06]}  Kf7 {[%clk 0:00:57]} 34. Ka2 {[%clk 0:00:06]}  b5 {[%clk 0:00:54]} 35. Nxb5 {[%clk 0:00:03]}  Qb3+ {[%clk 0:00:53]} 36. Ka1 {[%clk 0:00:03]}  Qxb5 {[%clk 0:00:54]} 0-1


[Site "https://www.chess.com"]

[Event "Titled Tuesday Blitz February 22 Early 2022"]
[White "Gracia Alvarez, Gerardo Antonio"]
[Black "Thomas, Anysia"]
[WhiteFideId "5109124"]
[BlackFideId "670472"]
[WhiteElo "2139"]
[BlackElo "2002"]
[Result "1-0"]
[Round "03"]
[TimeControl "180+1"]
[Date "2022.02.22"]
[WhiteClock "0:00:11"]
[BlackClock "0:00:02"]

1. c4 {[%clk 0:03:00]}  g6 {[%clk 0:02:54]} 2. d4 {[%clk 0:02:50]}  Nf6 {[%clk 0:02:43]} 3. g3 {[%clk 0:02:41]}  Bg7 {[%clk 0:02:36]} 4. Bg2 {[%clk 0:02:41]}  d5 {[%clk 0:02:36]} 5. cxd5 {[%clk 0:02:37]}  Nxd5 {[%clk 0:02:37]} 6. Nf3 {[%clk 0:02:36]}  Nb6 {[%clk 0:02:37]} 7. O-O {[%clk 0:02:36]}  Nc6 {[%clk 0:02:37]} 8. e3 {[%clk 0:02:30]}  e5 {[%clk 0:02:36]} 9. dxe5 {[%clk 0:02:22]}  Qxd1 {[%clk 0:02:35]} 10. Rxd1 {[%clk 0:02:22]}  Nxe5 {[%clk 0:02:35]} 11. Nd4 {[%clk 0:02:17]}  O-O {[%clk 0:02:26]} 12. Nc3 {[%clk 0:02:15]}  c6 {[%clk 0:02:20]} 13. b3 {[%clk 0:02:14]}  Bg4 {[%clk 0:02:18]} 14. Nde2 {[%clk 0:01:43]}  Bxe2 {[%clk 0:01:33]} 15. Nxe2 {[%clk 0:01:44]}  Nf3+ {[%clk 0:01:33]} 16. Bxf3 {[%clk 0:01:42]}  Bxa1 {[%clk 0:01:34]} 17. Ba3 {[%clk 0:01:42]}  Rfd8 {[%clk 0:01:34]} 18. Rxa1 {[%clk 0:01:42]}  Rd2 {[%clk 0:01:24]} 19. Bb4 {[%clk 0:01:35]}  Rd7 {[%clk 0:01:17]} 20. e4 {[%clk 0:01:29]}  Rad8 {[%clk 0:01:16]} 21. Nc3 {[%clk 0:01:18]}  Rd3 {[%clk 0:00:45]} 22. Kg2 {[%clk 0:01:14]}  Nd7 {[%clk 0:00:21]} 23. Be2 {[%clk 0:00:51]}  Rd4 {[%clk 0:00:17]} 24. Be7 {[%clk 0:00:35]}  Re8 {[%clk 0:00:15]} 25. Ba3 {[%clk 0:00:36]}  b5 {[%clk 0:00:10]} 26. Bc1 {[%clk 0:00:25]}  b4 {[%clk 0:00:09]} 27. Be3 {[%clk 0:00:24]}  Rd6 {[%clk 0:00:04]} 28. Nd1 {[%clk 0:00:18]}  Rxe4 {[%clk 0:00:04]} 29. Nb2 {[%clk 0:00:19]}  Rde6 {[%clk 0:00:04]} 30. Bf3 {[%clk 0:00:17]}  R4e5 {[%clk 0:00:03]} 31. Rc1 {[%clk 0:00:17]}  c5 {[%clk 0:00:03]} 32. Nd3 {[%clk 0:00:16]}  Rxe3 {[%clk 0:00:01]} 33. fxe3 {[%clk 0:00:15]}  Rxe3 {[%clk 0:00:02]} 34. Nxc5 {[%clk 0:00:15]}  Ne5 {[%clk 0:00:02]} 35. Rf1 {[%clk 0:00:09]}  Rc3 {[%clk 0:00:02]} 36. Ne4 {[%clk 0:00:09]}  Rc2+ {[%clk 0:00:01]} 37. Rf2 {[%clk 0:00:10]}  Rc7 {[%clk 0:00:01]} 38. Nf6+ {[%clk 0:00:10]}  Kg7 {[%clk 0:00:01]} 39. Nd5 {[%clk 0:00:10]}  Nd3 {[%clk 0:00:02]} 40. Nxc7 {[%clk 0:00:10]}  Nxf2 {[%clk 0:00:02]} 41. Kxf2 {[%clk 0:00:11]} 1-0


[Site "https://www.chess.com"]

[Event "Titled Tuesday Blitz February 22 Early 2022"]
[White "Grieve, Harry"]
[Black "Dronavalli, Harika"]
[WhiteFideId "426520"]
[BlackFideId "5015197"]
[WhiteElo "2294"]
[BlackElo "2382"]
[Result "1-0"]
[Round "03"]
[TimeControl "180+1"]
[Date "2022.02.22"]
[WhiteClock "0:00:13"]
[BlackClock "0:00:14"]

1. e4 {[%clk 0:03:00]}  c5 {[%clk 0:02:45]} 2. Nc3 {[%clk 0:03:00]}  Nc6 {[%clk 0:02:41]} 3. Bb5 {[%clk 0:03:00]}  Nd4 {[%clk 0:02:39]} 4. Nf3 {[%clk 0:03:00]}  a6 {[%clk 0:02:37]} 5. Bd3 {[%clk 0:02:59]}  e6 {[%clk 0:02:36]} 6. O-O {[%clk 0:02:59]}  Nc6 {[%clk 0:02:27]} 7. Nd5 {[%clk 0:02:57]}  b5 {[%clk 0:02:23]} 8. c3 {[%clk 0:02:49]}  Bb7 {[%clk 0:02:21]} 9. Re1 {[%clk 0:02:46]}  Bd6 {[%clk 0:02:20]} 10. Ne3 {[%clk 0:02:42]}  Nge7 {[%clk 0:02:17]} 11. Bc2 {[%clk 0:02:42]}  Bf4 {[%clk 0:02:00]} 12. d4 {[%clk 0:02:36]}  cxd4 {[%clk 0:01:57]} 13. cxd4 {[%clk 0:02:36]}  O-O {[%clk 0:01:56]} 14. a3 {[%clk 0:02:19]}  Ng6 {[%clk 0:01:49]} 15. g3 {[%clk 0:02:14]}  Bh6 {[%clk 0:01:48]} 16. h4 {[%clk 0:02:14]}  Rc8 {[%clk 0:01:45]} 17. h5 {[%clk 0:02:03]}  Nge7 {[%clk 0:01:43]} 18. Ng4 {[%clk 0:02:03]}  Bxc1 {[%clk 0:01:42]} 19. Rxc1 {[%clk 0:02:04]}  f5 {[%clk 0:01:39]} 20. exf5 {[%clk 0:01:55]}  Nxf5 {[%clk 0:01:39]} 21. d5 {[%clk 0:01:47]}  Nce7 {[%clk 0:01:39]} 22. dxe6 {[%clk 0:01:30]}  dxe6 {[%clk 0:01:39]} 23. Qxd8 {[%clk 0:01:13]}  Rcxd8 {[%clk 0:01:38]} 24. Ng5 {[%clk 0:01:13]}  Nd4 {[%clk 0:01:30]} 25. Bxh7+ {[%clk 0:01:02]}  Kh8 {[%clk 0:00:52]} 26. Be4 {[%clk 0:00:59]}  Bxe4 {[%clk 0:00:45]} 27. Rxe4 {[%clk 0:01:00]}  Rd6 {[%clk 0:00:39]} 28. Rc7 {[%clk 0:00:52]}  Rf5 {[%clk 0:00:22]} 29. f4 {[%clk 0:00:30]}  Ndc6 {[%clk 0:00:22]} 30. Rxe6 {[%clk 0:00:22]}  Rxg5 {[%clk 0:00:22]} 31. Rxd6 {[%clk 0:00:22]}  Rxg4 {[%clk 0:00:21]} 32. Kf2 {[%clk 0:00:19]}  g6 {[%clk 0:00:15]} 33. hxg6 {[%clk 0:00:18]}  Kg7 {[%clk 0:00:15]} 34. Rdxc6 {[%clk 0:00:18]}  Kf8 {[%clk 0:00:15]} 35. Re6 {[%clk 0:00:17]}  Nxg6 {[%clk 0:00:14]} 36. Rxa6 {[%clk 0:00:13]}  Nxf4 {[%clk 0:00:14]} 37. Ra8# {[%clk 0:00:13]} 1-0


[Site "https://www.chess.com"]

[Event "Titled Tuesday Blitz February 22 Early 2022"]
[White "Grunberg, Mihai-Lucian"]
[Black "Martirosyan, Haik M."]
[WhiteFideId "1204149"]
[BlackFideId "13306553"]
[WhiteElo "2364"]
[BlackElo "2735"]
[Result "0-1"]
[Round "03"]
[TimeControl "180+1"]
[Date "2022.02.22"]
[WhiteClock "0:00:27"]
[BlackClock "0:01:26"]

1. Nf3 {[%clk 0:03:00]}  f5 {[%clk 0:02:59]} 2. d4 {[%clk 0:02:57]}  Nf6 {[%clk 0:02:59]} 3. g3 {[%clk 0:02:57]}  g6 {[%clk 0:02:59]} 4. Bg2 {[%clk 0:02:58]}  Bg7 {[%clk 0:03:00]} 5. O-O {[%clk 0:02:58]}  O-O {[%clk 0:03:01]} 6. c3 {[%clk 0:02:58]}  d6 {[%clk 0:03:02]} 7. Qb3+ {[%clk 0:02:58]}  e6 {[%clk 0:02:57]} 8. Nbd2 {[%clk 0:02:53]}  Nc6 {[%clk 0:02:55]} 9. Ng5 {[%clk 0:02:50]}  d5 {[%clk 0:02:55]} 10. Ndf3 {[%clk 0:02:41]}  h6 {[%clk 0:02:55]} 11. Nh3 {[%clk 0:02:40]}  g5 {[%clk 0:02:55]} 12. Ne5 {[%clk 0:02:40]}  Nxe5 {[%clk 0:02:55]} 13. dxe5 {[%clk 0:02:40]}  Ne4 {[%clk 0:02:55]} 14. f4 {[%clk 0:02:36]}  c5 {[%clk 0:02:51]} 15. Bxe4 {[%clk 0:02:30]}  fxe4 {[%clk 0:02:46]} 16. fxg5 {[%clk 0:02:28]}  Rxf1+ {[%clk 0:02:44]} 17. Kxf1 {[%clk 0:02:28]}  hxg5 {[%clk 0:02:44]} 18. Bxg5 {[%clk 0:02:24]}  Qe8 {[%clk 0:02:45]} 19. Bf4 {[%clk 0:02:18]}  Qh5 {[%clk 0:02:43]} 20. Kg2 {[%clk 0:01:58]}  Qxe2+ {[%clk 0:02:41]} 21. Nf2 {[%clk 0:01:58]}  e3 {[%clk 0:02:37]} 22. Rf1 {[%clk 0:01:51]}  exf2 {[%clk 0:02:36]} 23. Rxf2 {[%clk 0:01:52]}  Qe4+ {[%clk 0:02:36]} 24. Kg1 {[%clk 0:01:52]}  Qc4 {[%clk 0:02:02]} 25. Qd1 {[%clk 0:01:49]}  Bd7 {[%clk 0:02:01]} 26. Qg4 {[%clk 0:01:47]}  Rf8 {[%clk 0:01:58]} 27. Qg6 {[%clk 0:01:40]}  Qe4 {[%clk 0:01:55]} 28. Qxe4 {[%clk 0:01:27]}  dxe4 {[%clk 0:01:56]} 29. Rd2 {[%clk 0:01:28]}  Bc6 {[%clk 0:01:55]} 30. Rd6 {[%clk 0:01:18]}  Kf7 {[%clk 0:01:54]} 31. Kf2 {[%clk 0:01:15]}  a5 {[%clk 0:01:47]} 32. Ke3 {[%clk 0:01:14]}  a4 {[%clk 0:01:47]} 33. h4 {[%clk 0:01:14]}  Rh8 {[%clk 0:01:45]} 34. Rd1 {[%clk 0:01:01]}  Bd5 {[%clk 0:01:44]} 35. b3 {[%clk 0:00:57]}  axb3 {[%clk 0:01:43]} 36. axb3 {[%clk 0:00:57]}  Ra8 {[%clk 0:01:43]} 37. c4 {[%clk 0:00:55]}  Bc6 {[%clk 0:01:44]} 38. h5 {[%clk 0:00:53]}  Ra3 {[%clk 0:01:36]} 39. Rb1 {[%clk 0:00:52]}  b5 {[%clk 0:01:29]} 40. cxb5 {[%clk 0:00:50]}  Bxb5 {[%clk 0:01:30]} 41. Kxe4 {[%clk 0:00:49]}  Bc6+ {[%clk 0:01:30]} 42. Kd3 {[%clk 0:00:46]}  Bd5 {[%clk 0:01:31]} 43. g4 {[%clk 0:00:39]}  c4+ {[%clk 0:01:29]} 44. Kc3 {[%clk 0:00:37]}  cxb3 {[%clk 0:01:29]} 45. g5 {[%clk 0:00:35]}  Ra4 {[%clk 0:01:28]} 46. Rf1 {[%clk 0:00:31]}  Kg8 {[%clk 0:01:28]} 47. h6 {[%clk 0:00:29]}  Rxf4 {[%clk 0:01:27]} 48. Rxf4 {[%clk 0:00:27]}  Bxe5+ {[%clk 0:01:26]} 0-1


[Site "https://www.chess.com"]